fUSD/lending_fUSD_20260111
["ID","MTS","AMOUNT","RATE_DAILY","PERIOD"]
[401356874,1768152644337,-427.001082,0.0001764,2]
[401356875,1768152644346,-455.569602,0.0001764,2]
[401356878,1768152644355,-427.001082,0.0001764,2]
[401356879,1768152644366,-455.569602,0.0001764,2]
[401356881,1768152644375,-382.764866,0.0001764,2]
[401356884,1768152644385,-2291.8576557,0.0001764,2]
[401356886,1768152644395,-382.764866,0.0001764,2]
[401356887,1768152644404,-151.0,0.0001764,2]
[401356890,1768152644413,-382.764866,0.0001764,2]
[401356891,1768152644423,-183.540129,0.0001764,2]
[401356893,1768152644433,-382.764866,0.0001764,2]
[401356896,1768152644443,-151.0,0.0001764,2]
[401356898,1768152644453,-151.0,0.0001764,2]
[401356900,1768152644464,-342.488988,0.0001764,2]
[401356902,1768152644474,-151.0,0.0001764,2]
[401356903,1768152644483,-151.0,0.0001764,2]
[401356906,1768152644492,-151.0,0.0001764,2]
[401356907,1768152644504,-342.488988,0.0001764,2]
[401356909,1768152644514,-151.0,0.0001764,2]
[401356912,1768152644524,-342.488988,0.0001764,2]
[401356913,1768152644535,-151.0,0.0001764,2]
[401356915,1768152644545,-151.0,0.0001764,2]
[401356917,1768152644555,-199.832252,0.0001764,2]
[401356919,1768152644566,-275.980319,0.0001764,2]
[401356921,1768152644576,-169.722858,0.0001764,2]
[401356923,1768152644585,-342.488988,0.0001764,2]
[401356925,1768152644595,-151.0,0.0001764,2]
[401356927,1768152644605,-275.980319,0.0001764,2]
[401356929,1768152644614,-199.832252,0.0001764,2]
[401356931,1768152644624,-151.0,0.0001764,2]
[401356933,1768152644633,-151.0,0.0001764,2]
[401356935,1768152644642,-151.0,0.0001764,2]
[401356937,1768152644651,-275.980319,0.0001764,2]
[401356939,1768152644660,-151.0,0.0001764,2]
[401356941,1768152644670,-199.832252,0.0001764,2]
[401356943,1768152644679,-151.0,0.0001764,2]
[401356945,1768152644689,-275.980319,0.0001764,2]
[401356948,1768152644699,-151.0,0.0001764,2]
[401356949,1768152644708,-199.832252,0.0001764,2]
[401356951,1768152644718,-151.0,0.0001764,2]
[401356953,1768152644727,-151.0,0.0001764,2]
[401356956,1768152644737,-574.12855637,0.00017647,2]
[401356957,1768152644745,-1101.0,0.00017649,2]
[401356959,1768152644754,-4188.1,0.00017671,2]
[401356961,1768152644764,-150.0,0.00017673,2]
[401356964,1768152644774,-590.06318863,0.00017684,2]
[401356966,1768152644784,-150.0,0.000177,2]
[401356967,1768152644793,-150.0,0.000177,2]
[401356969,1768152644802,-780.16040122,0.000177,2]
[401356971,1768152644811,-24700.0,0.000177,6]
[401356973,1768152644821,-1000.0,0.000177,2]
[401356975,1768152644830,-4188.1,0.00017712,2]
[401356977,1768152644839,-500.0,0.00017716,2]
[401356979,1768152644847,-254.85,0.00017734,2]
[401356981,1768152644857,-150.0,0.00017743,2]
[401356983,1768152644867,-4188.1,0.00017753,2]
[401356985,1768152644876,-590.06318863,0.00017756,2]
[401356987,1768152644885,-150.0,0.00017775,2]
[401356989,1768152644894,-4188.1,0.00017794,2]
[401356991,1768152644903,-500.0,0.00017797,2]
[401356993,1768152644912,-500.0,0.00017797,2]
[401356995,1768152644921,-500.0,0.00017797,2]
[401356997,1768152644930,-14440.20798762,0.000178,2]
[401356999,1768152644939,-151.0,0.000178,2]
[401357001,1768152644948,-151.0,0.000178,2]
[401357003,1768152644958,-906.513466,0.000178,2]
[401357005,1768152644967,-151.0,0.000178,2]
[401357007,1768152644976,-906.513466,0.000178,2]
[401357009,1768152644985,-184.371786,0.000178,2]
[401357011,1768152644994,-151.0,0.000178,2]
[401357013,1768152645002,-151.0,0.000178,2]
[401357015,1768152645012,-2039.220797,0.000178,2]
[401357017,1768152645021,-332.214435,0.000178,2]
[401357019,1768152645030,-906.513466,0.000178,2]
[401357021,1768152645040,-151.0,0.000178,2]
[401357023,1768152645048,-2039.220797,0.000178,2]
[401357025,1768152645058,-332.214435,0.000178,2]
[401357027,1768152645067,-151.0,0.000178,2]
[401357029,1768152645078,-151.0,0.000178,2]
[401357031,1768152645087,-151.0,0.000178,2]
[401357033,1768152645096,-906.513466,0.000178,2]
[401357035,1768152645105,-2039.220797,0.000178,2]
[401357037,1768152645114,-332.214435,0.000178,2]
[401357039,1768152645123,-580.109053,0.000178,2]
[401357041,1768152645132,-151.0,0.000178,2]
[401357043,1768152645141,-2039.220797,0.000178,2]
[401357045,1768152645150,-332.214435,0.000178,2]
[401357047,1768152645159,-580.109053,0.000178,2]
[401357049,1768152645168,-573.970445,0.000178,2]
[401357051,1768152645178,-580.109053,0.000178,2]
[401357053,1768152645187,-573.970445,0.000178,2]
[401357055,1768152645196,-161.879998,0.000178,2]
[401357057,1768152645205,-151.0,0.000178,2]
[401357059,1768152645215,-580.109053,0.000178,2]
[401357061,1768152645225,-573.970445,0.000178,2]
[401357063,1768152645234,-1866.961288,0.000178,2]
[401357065,1768152645244,-151.0,0.000178,2]
[401357067,1768152645253,-573.970445,0.000178,2]
[401357069,1768152645263,-151.0,0.000178,2]
[401357071,1768152645272,-165.572138,0.000178,2]
[401357073,1768152645282,-1866.961288,0.000178,2]
[401357075,1768152645291,-173.624464,0.000178,2]
[401357077,1768152645300,-196.746434,0.000178,2]
[401357079,1768152645309,-284.025534,0.000178,2]
[401357080,1768152645318,-165.572138,0.000178,2]
[401357083,1768152645328,-1866.961288,0.000178,2]
[401357084,1768152645337,-173.624464,0.000178,2]
[401357087,1768152645346,-151.0,0.000178,2]
[401357089,1768152645356,-196.746434,0.000178,2]
[401357091,1768152645365,-173.624464,0.000178,2]
[401357093,1768152645375,-196.746434,0.000178,2]
[401357094,1768152645384,-2235.751841,0.000178,2]
[401357097,1768152645394,-173.624464,0.000178,2]
[401357098,1768152645403,-2235.751841,0.000178,2]
[401357101,1768152645413,-1866.961288,0.000178,2]
[401357103,1768152645422,-196.746434,0.000178,2]
[401357104,1768152645431,-2235.751841,0.000178,2]
[401357107,1768152645440,-2235.751841,0.000178,2]
[401357109,1768152645450,-165.572138,0.000178,2]
[401357110,1768152645459,-921.834081,0.000178,2]
[401357113,1768152645468,-921.834081,0.000178,2]
[401357115,1768152645478,-165.572138,0.000178,2]
[401357117,1768152645487,-921.834081,0.000178,2]
[401357119,1768152645497,-175.360482,0.000178,2]
[401357121,1768152645510,-921.834081,0.000178,2]
[401357123,1768152645519,-151.0,0.000178,2]
[401357125,1768152645529,-151.0,0.000178,2]
[401357126,1768152645538,-151.0,0.000178,2]
[401357128,1768152645547,-1000.0,0.000178,2]
[401357130,1768152645557,-151.0,0.000178,2]
[401357132,1768152645566,-151.0,0.000178,2]
[401357134,1768152645575,-280.30467,0.000178,2]
[401357136,1768152645586,-24700.0,0.000178,6]
[401357139,1768152645596,-1898.0,0.0001781,2]
[401357141,1768152645606,-1898.0,0.00017816,2]
[401357143,1768152645615,-150.0,0.0001782,2]
[401357144,1768152645624,-150.0,0.0001782,2]
[401357146,1768152645634,-971.11466,0.0001782,2]
[401357148,1768152645643,-971.11466,0.0001782,2]
[401357151,1768152645654,-590.06318863,0.00017828,2]
[401357152,1768152645664,-971.11466,0.0001783,2]
[401357154,1768152645673,-4188.1,0.00017835,2]
[401357157,1768152645683,-1501.06,0.00017836,2]
[401357158,1768152645692,-150.0,0.00017836,2]
[401357160,1768152645701,-200.0,0.00017855,2]
[401357162,1768152645711,-200.0,0.00017856,2]
[401357164,1768152645720,-200.0,0.00017856,2]
[401357166,1768152645730,-971.11466,0.0001786,2]
[401357168,1768152645739,-25000.0,0.00017865,3]
[401357170,1768152645749,-25000.0,0.00017874,3]
[401357173,1768152645759,-4188.1,0.00017876,2]
[401357175,1768152645768,-971.11466,0.0001788,2]
[401357177,1768152645778,-25000.0,0.00017882,3]
[401357179,1768152645789,-25000.0,0.00017891,3]
[401357181,1768152645798,-168.88082286,0.000179,2]
[401357182,1768152645808,-10000.0,0.000179,2]
[401357183,1768152645818,-25000.0,0.000179,3]
[401357184,1768152645827,-1089.8409,0.000179,2]
[401357185,1768152645835,-24323.20926535,0.000179,3]
[401357186,1768152645845,-990.42571281,0.000179,2]
[401357187,1768152645854,-17597.54371347,0.000179,2]
[401357188,1768152645864,-25118.0,0.000179,6]
[401357189,1768152645873,-791.45935323,0.000179,3]
[401357190,1768152645882,-590.06318863,0.000179,2]
[401357192,1768152645891,-16813.34281409,0.000179,2]
[401357193,1768152645900,-654.04301641,0.000179,2]
[401357195,1768152645909,-654.04301631,0.000179,2]
[401357197,1768152645919,-654.04301631,0.000179,2]
[401357199,1768152645928,-654.04301631,0.000179,2]
[401357201,1768152645938,-654.04301631,0.000179,2]
[401357203,1768152645949,-500.0,0.000179,2]
[401357205,1768152645958,-500.0,0.000179,2]
[401357207,1768152645968,-500.0,0.000179,2]
[401357209,1768152645978,-500.0,0.000179,2]
[401357212,1768152645987,-500.0,0.000179,2]
[401357215,1768152645995,-500.0,0.000179,2]
[401357218,1768152646004,-500.0,0.000179,2]
[401357220,1768152646014,-500.0,0.000179,2]
[401357222,1768152646023,-500.0,0.000179,2]
[401357224,1768152646032,-500.0,0.000179,2]
[401357226,1768152646041,-500.0,0.000179,2]
[401357228,1768152646051,-500.0,0.000179,2]
[401357230,1768152646059,-500.0,0.000179,2]
[401357232,1768152646069,-500.0,0.000179,2]
[401357234,1768152646078,-500.0,0.000179,2]
[401357235,1768152646087,-500.0,0.000179,2]
[401357238,1768152646097,-500.0,0.000179,2]
[401357240,1768152646106,-8889.0,0.000179,2]
[401357242,1768152646115,-971.11466,0.0001791,2]
[401357244,1768152646124,-4188.1,0.00017918,2]
[401357246,1768152646133,-241.13,0.00017918,2]
[401357248,1768152646143,-3344.6650123,0.00017955,2]
[401357250,1768152646152,-4188.1,0.00017959,2]
[401357252,1768152646161,-500.0,0.00017968,2]
[401357254,1768152646170,-20007.5671445,0.00017969,2]
[401357256,1768152646179,-516.81548124,0.00017972,2]
[401357258,1768152646189,-498.39272947,0.00017973,2]
[401357260,1768152646198,-500.0,0.00017973,2]
[401357262,1768152646207,-500.0,0.00017973,2]
[401357264,1768152646216,-500.0,0.00017973,2]
[401357266,1768152646225,-500.0,0.00017973,2]
[401357268,1768152646234,-500.0,0.00017973,2]
[401357270,1768152646244,-500.0,0.00017973,2]
[401357271,1768152646253,-500.0,0.00017973,2]
[401357273,1768152646263,-500.0,0.00017973,2]
[401357275,1768152646272,-500.0,0.00017973,2]
[401357277,1768152646281,-500.0,0.00017973,2]
[401357279,1768152646291,-500.0,0.00017973,2]
[401357281,1768152646301,-380.05360747,0.00017973,2]
[401357283,1768152646311,-500.0,0.00017973,2]
[401357285,1768152646320,-500.0,0.00017973,2]
[401357287,1768152646330,-500.0,0.00017973,2]
[401357289,1768152646339,-500.0,0.00017973,2]
[401357291,1768152646349,-500.0,0.00017973,2]
[401357293,1768152646358,-500.0,0.00017973,2]
[401357296,1768152646368,-500.0,0.00017973,2]
[401357298,1768152646377,-500.0,0.00017973,2]
[401357300,1768152646387,-500.0,0.00017973,2]
[401357301,1768152646396,-1990.229,0.00017989,2]
[401357304,1768152646406,-2004.84669515,0.0001799,2]
[401357305,1768152646416,-1127.582295,0.0001799,2]
[401357307,1768152646425,-1127.582295,0.0001799,2]
[401357309,1768152646435,-166.9455236,0.00017999,2]
[401357311,1768152646444,-300.0,0.00017999,2]
[401357313,1768152646455,-300.0,0.00017999,2]
[401357315,1768152646464,-500.0,0.00017999,2]
[401357317,1768152646473,-500.0,0.00017999,2]
[401357319,1768152646483,-500.0,0.00017999,2]
[401357321,1768152646493,-500.0,0.00017999,2]
[401357324,1768152646505,-500.0,0.00017999,2]
[401357325,1768152646514,-415.1732756,0.00017999,2]
[401357327,1768152646523,-6474.7929339,0.00017999,2]
[401357329,1768152646533,-300.0,0.00017999,2]
[401357331,1768152646543,-673.04563665,0.00017999,2]
[401357334,1768152646553,-300.0,0.00017999,2]
[401357335,1768152646563,-150.0,0.00018,2]
[401357337,1768152646572,-150.0,0.00018,2]
[401357339,1768152646582,-150.0,0.00018,2]
[401357341,1768152646592,-150.0,0.00018,2]
[401357343,1768152646601,-150.0,0.00018,2]
[401357345,1768152646611,-150.0,0.00018,2]
[401357347,1768152646620,-150.4343184,0.00018,2]
[401357349,1768152646629,-150.00000001,0.00018,2]
[401357351,1768152646638,-178.176763,0.00018,2]
[401357353,1768152646647,-150.37867968,0.00018,2]
[401357355,1768152646657,-150.0,0.00018,2]
[401357357,1768152646666,-150.0,0.00018,2]
[401357359,1768152646675,-247.12115075,0.00018,2]
[401357361,1768152646684,-150.0,0.00018,2]
[401357363,1768152646694,-671786.19766892,0.00018,2]
[401357365,1768152646704,-361552.94199038,0.00018,2]
[401357371,1768152646753,172.88275065,0.00014997,2]
[401357383,1768152646851,-151.0,0.00015922,2]
[401357385,1768152646860,-172.88275063,0.00016449,2]
[401357387,1768152646869,-119.56788997,0.0001764,2]
[401357453,1768152647487,-356.64101203,0.0001764,2]
[401357456,1768152647497,-151.0,0.000178,2]
[401357458,1768152647509,-654.04301631,0.000179,2]
[401357460,1768152647519,-225839.75005806,0.00018,2]
[401357461,1768152647529,-5021.48472083,0.00018,2]
[401357462,1768152647541,-1359.27,0.00018,2]
[401357463,1768152647560,-384.5897475,0.00018,2]
[401357464,1768152647570,-490957.75272402,0.00018,2]
[401357465,1768152647581,-319667.59298343,0.00018,2]
[401357472,1768152647661,-172.88275063,0.00017174,2]
[401357474,1768152647670,-5702.55564725,0.00018,2]
[401357476,1768152647681,-13209.76184703,0.00018,2]
[401357478,1768152647692,-462.84989598,0.00018,2]
[401357480,1768152647704,-327.410967,0.00018,2]
[401357483,1768152647715,-191187.00770691,0.00018,2]
[401357485,1768152647727,-59794.85756083,0.00018,2]
[401357487,1768152647738,-15908.81882788,0.00018,2]
[401357489,1768152647749,-2612.77264086,0.00018,2]
[401357492,1768152647771,-96.01123097,0.00018,2]
[401357494,1768152647782,-811.8872998,0.00018,2]
[401357497,1768152647793,-379.12940536,0.00018,2]
[401357499,1768152647805,-657.92929977,0.00018,2]
[401357713,1768152679138,666568.55022049,0.00014997,2]
[401357714,1768152688516,-152.68088658,0.00014997,2]
[401357715,1768152689740,1500.0,0.00027,120]
[401357716,1768152691062,-155.04733483,0.00014997,2]
[401357717,1768152692515,-1118.49508224,0.00014997,2]
[401357718,1768152694478,-151.98869862,0.00014997,2]
[401357719,1768152696844,-247.27177859,0.00014997,2]
[401357722,1768152759477,155.00282523,0.00014897,2]
[401357723,1768152762854,4238.569781,0.00014922,2]
[401357724,1768152797817,11118.13295259,0.00014897,2]
[401357725,1768152898877,13862.49193235,0.00014947,2]
[401357726,1768152927023,164.91365506,0.00014895,2]
[401357727,1768152933673,164.91365504,0.00014896,2]
[401357728,1768152938969,164.91365504,0.00014897,2]
[401357729,1768152981894,155.00282521,0.00014897,2]
[401357730,1768153025729,200.0,0.00014988,2]
[401357731,1768153031866,151.0,0.00014988,2]
[401357732,1768153032463,151.0,0.00014988,2]
[401357733,1768153032563,151.0,0.00014988,2]
[401357734,1768153033064,151.0,0.00014988,2]
[401357735,1768153033411,151.0,0.00014988,2]
[401357736,1768153034023,151.0,0.00014988,2]
[401357737,1768153034192,151.0,0.00014988,2]
[401357738,1768153034565,500.0,0.00014988,2]
[401357739,1768153034627,151.0,0.00014988,2]
[401357740,1768153034813,151.0,0.00014988,2]
[401357741,1768153035154,500.0,0.00014988,2]
[401357742,1768153035239,151.0,0.00014988,2]
[401357743,1768153035439,151.0,0.00014988,2]
[401357744,1768153035749,500.0,0.00014988,2]
[401357745,1768153035849,151.0,0.00014988,2]
[401357746,1768153036058,151.0,0.00014988,2]
[401357747,1768153036372,500.0,0.00014988,2]
[401357748,1768153036455,151.0,0.00014988,2]
[401357749,1768153036661,151.0,0.00014988,2]
[401357750,1768153036954,500.0,0.00014988,2]
[401357751,1768153037040,151.0,0.00014988,2]
[401357752,1768153037269,151.0,0.00014988,2]
[401357753,1768153037571,500.0,0.00014988,2]
[401357754,1768153037758,151.0,0.00014988,2]
[401357755,1768153037859,151.0,0.00014988,2]
[401357756,1768153038174,500.0,0.00014988,2]
[401357757,1768153038413,151.0,0.00014988,2]
[401357758,1768153038502,151.0,0.00014988,2]
[401357759,1768153038760,500.0,0.00014988,2]
[401357760,1768153039048,151.0,0.00014988,2]
[401357761,1768153039292,151.0,0.00014988,2]
[401357762,1768153039449,500.0,0.00014988,2]
[401357763,1768153039680,151.0,0.00014988,2]
[401357764,1768153039932,151.0,0.00014988,2]
[401357765,1768153040058,500.0,0.00014988,2]
[401357766,1768153040523,151.0,0.00014988,2]
[401357767,1768153040647,284.74770589,0.00014988,2]
[401357768,1768153041603,151.0,0.00014988,2]
[401357769,1768153042093,160.89416707,0.00014988,2]
[401357770,1768153043452,500.0,0.00014988,2]
[401357771,1768153043799,200.0,0.00014988,2]
[401357772,1768153044072,500.0,0.00014988,2]
[401357773,1768153044851,500.0,0.00014988,2]
[401357774,1768153045578,500.0,0.00014988,2]
[401357775,1768153045949,200.0,0.00014988,2]
[401357776,1768153046224,500.0,0.00014988,2]
[401357777,1768153047037,500.0,0.00014988,2]
[401357778,1768153047081,500.0,0.00014988,2]
[401357779,1768153047689,500.0,0.00014988,2]
[401357780,1768153048317,500.0,0.00014988,2]
[401357781,1768153048992,500.0,0.00014988,2]
[401357782,1768153049639,500.0,0.00014988,2]
[401357783,1768153050295,577.21725198,0.00014988,2]
[401357788,1768153112336,155.00282521,0.00014897,2]
[401357789,1768153112492,155.00282521,0.00014897,2]
[401357790,1768153167105,471.3253,0.00014897,2]
[401357791,1768153203410,823.68,0.00014987,2]
[401357798,1768153216189,3375.5,0.00014987,2]
[401357799,1768153289535,7025.1571,0.00014897,2]
[401357800,1768153303059,-265.76700523,0.00014994,2]
[401357801,1768153307058,-34.23299477,0.00014994,2]
[401357802,1768153307080,-267.76700523,0.00014994,2]
[401357803,1768153310043,-166.37816147,0.00014994,2]
[401357804,1768153310761,13525.82840007,0.00014897,2]
[401357805,1768153312044,-302.0,0.00014994,2]
[401357806,1768153313556,-463.8548333,0.00014994,2]
[401357807,1768153313580,-120.7841667,0.00014994,2]
[401357808,1768153317262,-190.35978391,0.00014994,2]
[401357809,1768153317285,-151.62282096,0.00014995,2]
[401357810,1768153317309,-109.01739513,0.00014995,2]
[401357811,1768153319186,-302.0,0.00014995,2]
[401357812,1768153321850,-421.1354126,0.00014995,2]
[401357813,1768153326128,-339.44339648,0.00014995,2]
[401357814,1768153329425,-166.66,0.00014995,2]
[401357815,1768153331450,-389.05,0.00014995,2]
[401357816,1768153392934,-130.85587079,0.00014995,2]
[401357817,1768153392958,-27.92833293,0.00014995,2]
[401357818,1768153396916,-122.07166707,0.00014995,2]
[401357819,1768153396936,-300.0,0.00014995,2]
[401357820,1768153396956,-7.01719986,0.00014995,2]
[401357824,1768153452698,433.13939868,0.000149,2]
[401357825,1768153468033,-300.0,0.00014995,2]
[401357826,1768153468059,-67.10931886,0.00014996,2]
[401357827,1768153471227,-164.66040691,0.00014996,2]
[401357828,1768153471251,-1.79658408,0.00014996,2]
[401357829,1768153472278,-196.30696258,0.00014996,2]
[401357834,1768153642145,-911.20365902,0.00014995,2]
[401357835,1768153644011,-288.79634098,0.00014995,2]
[401357836,1768153644033,-300.0,0.00014995,2]
[401357837,1768153644059,-150.0,0.00014995,2]
[401357838,1768153644081,-367.10931886,0.00014995,2]
[401357839,1768153644102,-195.0,0.00014995,2]
[401357840,1768153644128,-301.89645334,0.00014996,2]
[401357841,1768153644150,-500.0,0.00014996,2]
[401357842,1768153644172,-500.0,0.00014996,2]
[401357843,1768153644194,-500.0,0.00014996,2]
[401357844,1768153644216,-500.0,0.00014996,2]
[401357845,1768153644239,-500.0,0.00014996,2]
[401357846,1768153644264,-500.0,0.00014996,2]
[401357847,1768153644286,-500.0,0.00014996,2]
[401357848,1768153644307,-500.0,0.00014996,2]
[401357849,1768153644327,-500.0,0.00014996,2]
[401357850,1768153644349,-463.00114278,0.00014996,2]
[401357852,1768153710625,1000000.0,0.00014896,2]
[401357853,1768153752961,-228.65976496,0.00014995,2]
[401357854,1768153757168,-71.34023504,0.00014995,2]
[401357855,1768153757194,-315.53488248,0.00014996,2]
[401357856,1768153765099,-184.46511752,0.00014996,2]
[401357857,1768153765120,-150.0,0.00014996,2]
[401357858,1768153765140,-602.27768248,0.00014997,2]
[401357874,1768153831311,-397.72231752,0.00014997,2]
[401357875,1768153831321,-195.0,0.00015016,2]
[401357876,1768153831330,-300.0,0.00015035,2]
[401357877,1768153831339,-1200.0,0.00015035,2]
[401357878,1768153831349,-500.0,0.00015036,2]
[401357879,1768153831358,-500.0,0.00015036,2]
[401357880,1768153831368,-500.0,0.00015036,2]
[401357881,1768153831380,-500.0,0.00015036,2]
[401357882,1768153831389,-472.28757661,0.00015036,2]
[401357883,1768153831406,-27.71242339,0.00015036,2]
[401357884,1768153831415,-500.0,0.00015036,2]
[401357885,1768153831425,-500.0,0.00015036,2]
[401357886,1768153831434,-9.44188911,0.00015036,2]
[401357887,1768153831447,-490.55811089,0.00015036,2]
[401357888,1768153831456,-500.0,0.00015036,2]
[401357889,1768153831466,-500.0,0.00015036,2]
[401357890,1768153831476,-500.0,0.00015036,2]
[401357891,1768153831486,-500.0,0.00015036,2]
[401357892,1768153831495,-500.0,0.00015036,2]
[401357893,1768153831505,-500.0,0.00015036,2]
[401357894,1768153831515,-500.0,0.00015036,2]
[401357897,1768153831836,-500.0,0.00015036,2]
[401357898,1768153831847,-500.0,0.00015036,2]
[401357899,1768153831857,-500.0,0.00015096,2]
[401357900,1768153831867,-500.0,0.00015096,2]
[401357901,1768153831878,-500.0,0.00015096,2]
[401357902,1768153831887,-500.0,0.00015096,2]
[401357903,1768153831896,-500.0,0.00015096,2]
[401357904,1768153831907,-437.58562247,0.00015096,2]
[401357905,1768153831916,-500.0,0.00015096,2]
[401357906,1768153831926,-500.0,0.00015096,2]
[401357907,1768153831935,-500.0,0.00015096,2]
[401357908,1768153831945,-500.0,0.00015096,2]
[401357909,1768153831954,-160.97517369,0.00015096,2]
[401357910,1768153831964,-500.0,0.00015096,2]
[401357911,1768153831973,-500.0,0.00015096,2]
[401357912,1768153831983,-500.0,0.00015096,2]
[401357913,1768153831992,-533.84953358,0.00015096,2]
[401357914,1768153832001,-500.0,0.00015096,2]
[401357915,1768153832011,-1682.2,0.00015096,2]
[401357916,1768153832020,-13444.71412178,0.00015136,2]
[401357917,1768153832030,-500.0,0.00015236,3]
[401357918,1768153832040,-246.64,0.00015256,2]
[401357919,1768153832049,-2848.4892762,0.00015292,2]
[401357920,1768153832066,-257.8752,0.00015292,2]
[401357921,1768153832077,-786.2755238,0.00015292,2]
[401357922,1768153832087,-150.0,0.00015352,2]
[401357923,1768153832097,-150.0,0.00015352,2]
[401357924,1768153832106,-1682.2,0.0001537,2]
[401357925,1768153832115,-150.0,0.00015407,2]
[401357926,1768153832125,-150.0,0.00015407,2]
[401357927,1768153832134,-150.0,0.00015408,2]
[401357928,1768153832145,-150.0,0.00015408,2]
[401357929,1768153832154,-500.0,0.00015408,2]
[401357930,1768153832164,-150.0,0.00015408,2]
[401357931,1768153832173,-150.0,0.00015408,2]
[401357932,1768153832183,-150.0,0.00015408,2]
[401357933,1768153832193,-398.59514113,0.00015408,2]
[401357934,1768153832204,-101.40485887,0.00015408,2]
[401357935,1768153832213,-150.0,0.00015408,2]
[401357936,1768153832222,-249.59514113,0.00015408,2]
[401357937,1768153832252,-250.40485887,0.00015408,2]
[401357938,1768153832261,-150.0,0.00015408,2]
[401357939,1768153832270,-150.0,0.00015408,2]
[401357940,1768153832280,-500.0,0.00015408,2]
[401357941,1768153832289,-1118.04674408,0.00015443,2]
[401357942,1768153832300,-351.95902904,0.00015443,2]
[401357943,1768153832316,-4208.4625789,0.00015443,2]
[401357944,1768153832327,-2735.64,0.00015443,2]
[401357945,1768153832338,-1157.04799734,0.00015443,2]
[401357948,1768153837427,-3873.5577724,0.00015443,2]
[401357949,1768153837437,-202.13388248,0.00015462,2]
[401357950,1768153837447,-213.50861937,0.00015462,2]
[401357951,1768153837456,-150.0,0.00015463,2]
[401357952,1768153837466,-540.6958443,0.00015463,2]
[401357953,1768153837475,-150.0,0.00015463,2]
[401357954,1768153837484,-150.0,0.00015463,2]
[401357955,1768153837494,-150.0,0.00015463,2]
[401357956,1768153837504,-500.0,0.00015463,2]
[401357957,1768153837513,-150.0,0.00015463,2]
[401357958,1768153837523,-500.0,0.00015463,2]
[401357959,1768153837532,-500.0,0.00015463,2]
[401357960,1768153837542,-500.0,0.00015518,2]
[401357961,1768153837552,-150.0,0.00015518,2]
[401357962,1768153837561,-207.76900192,0.00015518,2]
[401357963,1768153837571,-209.28170524,0.00015518,2]
[401357964,1768153837584,-207.53349855,0.00015518,2]
[401357965,1768153837594,-500.0,0.00015518,2]
[401357966,1768153837603,-150.0,0.00015518,2]
[401357967,1768153837615,-500.0,0.00015518,2]
[401357968,1768153837626,-500.0,0.00015518,2]
[401357969,1768153837637,-202.53330152,0.00015572,2]
[401357971,1768153837647,-500.0,0.00015572,2]
[401357973,1768153837656,-150.0,0.00015572,2]
[401357975,1768153837665,-227.7633421,0.00015572,2]
[401357977,1768153837675,-513.03020959,0.00015572,2]
[401357979,1768153837684,-439.26,0.000156,2]